bitfinex/quotes_SOLUSD_20251120
["timestamp","ask_amount","ask_price","bid_price","bid_amount"]
[1763632473481,7.04137292,142.02,142.0,4.69744414]
[1763632473482,0.71,142.01,142.0,4.69744414]
[1763632473686,5.84614836,142.01,142.0,6.37744414]
[1763632473999,0.71,142.01,142.0,6.37744414]
[1763632474202,5.84766198,142.01,141.99,0.23117626]
[1763632474370,0.71,142.01,142.0,1.68]
[1763632474568,5.84998033,142.01,142.0,1.68]
[1763632474998,12.89173795,142.01,142.0,1.68]
[1763632475291,7.75175762,142.01,142.0,1.68]
[1763632475970,17.79420376,142.1,142.0,11.39108576]
[1763632476170,5.85181526,142.09,142.05,2.66907356]
[1763632476371,0.2,142.1,142.06,1.68]
[1763632476372,5.85181526,142.08,142.06,1.68]
[1763632476580,5.14181526,142.07,142.06,1.68]
[1763632476798,5.85181526,142.07,142.06,1.68]
[1763632477299,12.89059895,142.07,142.06,1.68]
[1763632478472,5.14181526,142.07,142.06,4.34907356]
[1763632478880,5.14181526,142.07,142.06,8.82287202]
[1763632479281,7.7481068,142.09,142.06,15.86200995]
[1763632479282,0.71,142.09,142.06,15.86200995]
[1763632479482,0.2,142.1,142.06,15.86200995]
[1763632479483,5.34501139,142.1,142.06,9.39913793]
[1763632479700,0.2,142.1,142.09,7.14287202]
[1763632479876,0.2,142.1,142.09,8.82287202]
[1763632480077,0.2,142.1,142.09,1.68]
[1763632480283,5.34628777,142.1,142.09,1.68]
[1763632480685,6.05628777,142.1,142.09,1.68]
[1763632481210,7.94729767,142.1,142.07,8.82287202]
[1763632481408,0.71,142.09,142.07,1.68]
[1763632482298,5.82654023,142.09,142.07,1.68]
[1763632482795,0.71,142.08,142.06,1.68]
[1763632483397,7.03878369,142.07,142.06,1.68]
[1763632483907,7.74878369,142.07,142.06,1.68]
[1763632484203,30.48911947,142.07,142.04,1.68]
[1763632484405,5.85337654,142.06,142.04,1.68]
[1763632484705,5.14337654,142.05,142.04,1.68]
[1763632484874,5.85337654,142.05,142.04,1.68]
[1763632485080,5.85337654,142.05,142.03,1.68]
[1763632485281,24.64268111,142.03,141.98,24.03451561]
[1763632485482,41.57438082,142.03,141.99,5.2252966]
[1763632485723,9.78882769,142.0,141.97,1.68]
[1763632485882,9.78882769,142.0,141.98,5.22573383]
[1763632486220,0.71,141.99,141.95,8.82287202]
[1763632486397,0.71,141.99,141.96,17.07295064]
[1763632486733,0.71,141.99,141.97,9.93007862]
[1763632486893,10.49882769,141.99,141.98,5.22642077]
[1763632487083,0.71,141.99,141.98,5.22642077]
[1763632487283,7.75274948,141.99,141.98,5.22642077]
[1763632487703,7.75274948,141.99,141.98,9.93125446]
[1763632487986,7.75274948,141.99,141.98,5.22642077]
[1763632492081,7.04274948,141.99,141.98,5.22642077]
[1763632492515,7.72274948,141.99,141.98,5.22642077]
[1763632493189,36.40640663,142.01,141.98,9.94396142]
[1763632493384,0.68,142.0,141.99,5.22642077]
[1763632494300,0.68,142.0,141.99,9.9479605]
[1763632495089,7.72225352,142.0,141.99,9.9479605]
[1763632495512,24.65395323,142.0,141.99,5.22642077]
[1763632496010,17.51108121,142.0,141.99,5.22642077]
[1763632496394,7.04225352,142.0,141.99,5.22642077]
[1763632496608,7.04225352,142.0,141.99,6.90642077]
[1763632496906,7.72172082,142.02,141.99,18.76943555]
[1763632497084,7.72172082,142.02,142.0,9.94656353]
[1763632497287,7.72172082,142.02,141.99,8.82287202]
[1763632497288,7.72172082,142.02,142.01,9.94656353]
[1763632497816,7.04172082,142.02,142.01,9.94656353]
[1763632498313,7.72172082,142.02,142.01,9.94656353]
[1763632499038,7.72172082,142.02,142.01,5.22642077]
[1763632499216,7.72172082,142.02,142.01,9.94547759]
[1763632500307,0.68,142.02,142.01,9.94547759]
[1763632500523,7.72126179,142.02,142.01,9.94547759]
[1763632501100,7.04126179,142.02,142.01,9.94547759]
[1763632501293,7.04126179,142.02,142.01,17.08834961]
[1763632501524,7.03977472,142.05,142.01,17.76834961]
[1763632501702,7.71977472,142.05,142.02,18.76834961]
[1763632502022,7.71977472,142.05,142.03,17.08834961]
[1763632502023,7.03977472,142.05,142.03,17.08834961]
[1763632502199,7.03977472,142.05,142.04,5.22642077]
[1763632502515,7.03878369,142.07,142.04,5.22642077]
[1763632502821,25.31574293,142.07,142.05,6.90642077]
[1763632503019,25.31574293,142.07,142.06,5.22642077]
[1763632503230,25.31574293,142.07,142.06,5.24287808]
[1763632504512,35.10457062,142.07,142.06,5.24287808]
[1763632504708,7.14287202,142.04,142.01,1.68]
[1763632504911,7.14287202,142.04,142.02,1.68]
[1763632505233,0.68,142.04,142.02,1.68]
[1763632505396,0.68,142.03,142.02,1.68]
[1763632506427,7.72076603,142.03,142.02,1.68]
[1763632507000,7.72076603,142.03,142.02,6.40236532]
[1763632507401,7.04047484,142.04,142.02,13.54523734]
[1763632507618,7.04047484,142.04,142.02,1.68]
[1763632507825,0.68,142.03,142.02,1.68]
[1763632507995,0.68,142.03,142.02,6.40274954]
[1763632508199,7.04047484,142.04,142.02,6.40274954]
[1763632508400,7.72047484,142.04,142.02,1.68]
[1763632510608,0.68,142.04,142.02,1.68]
[1763632510813,25.16093106,142.05,142.03,7.39175727]
[1763632511014,18.12096,142.05,142.03,2.66847482]
[1763632511240,25.16073472,142.05,142.04,4.72289449]
[1763632514230,25.84073472,142.05,142.04,4.72289449]
[1763632514626,43.44017153,142.05,142.02,1.68]
[1763632514839,0.68,142.04,142.03,4.72366078]
[1763632515046,7.71977472,142.05,142.03,4.72366078]
[1763632515228,0.68,142.05,142.04,4.72366078]
[1763632515743,7.03936624,142.06,142.04,4.72366078]
[1763632515922,25.31756418,142.06,142.03,2.66847482]
[1763632516122,25.31756418,142.06,142.04,4.72284697]
[1763632516332,25.31756418,142.06,142.03,2.66847482]
[1763632516525,25.31756418,142.06,142.04,4.72266165]
[1763632516750,25.31756418,142.06,142.05,5.2475932]
[1763632517630,35.10639187,142.06,142.05,5.2475932]
[1763632518935,0.2,142.12,142.05,22.88190387]
[1763632519141,0.2,142.12,142.09,2.66847482]
[1763632519338,7.23660273,142.12,142.09,14.31848648]
[1763632519543,7.23660273,142.12,142.09,14.99848648]
[1763632520744,7.03686363,142.11,142.09,11.65001166]
[1763632520944,7.03686363,142.11,142.09,18.78995286]
[1763632521145,0.92,142.12,142.09,18.78995286]
[1763632521330,0.2,142.12,142.09,18.78995286]
[1763632521532,7.23638119,142.12,142.09,18.78995286]
[1763632521746,0.2,142.12,142.09,19.46995286]
[1763632522156,7.23654826,142.12,142.09,18.78995286]
[1763632523149,7.23654826,142.12,142.09,19.46995286]
[1763632523663,7.23654826,142.12,142.09,18.78995286]
[1763632524878,7.95654826,142.12,142.09,18.78995286]
[1763632525256,0.92,142.1,142.09,9.97001166]
[1763632525454,0.2,142.12,142.09,26.5077458]
[1763632525654,0.2,142.12,142.11,14.2798824]
[1763632525960,0.2,142.12,142.11,9.97001166]
[1763632526159,7.95630734,142.12,142.11,9.97001166]
[1763632526338,7.95630734,142.12,141.97,13.44201917]
[1763632526339,1.99999999,142.08,141.97,13.44201917]
[1763632526536,18.12096,142.09,142.04,7.1399412]
[1763632526769,4.72800392,142.08,142.06,11.0553205]
[1763632526971,4.72800392,142.08,142.05,1.7]
[1763632526972,9.78882769,142.07,142.05,1.7]
[1763632527167,0.68,142.06,142.05,1.7]
[1763632527483,24.63921153,142.05,142.01,11.0553205]
[1763632527633,5.84080305,142.04,142.02,12.7553205]
[1763632527832,5.16080305,142.04,142.03,1.7]
[1763632528038,7.03928163,142.06,142.03,12.7553205]
[1763632528260,5.16120898,142.05,142.03,1.7]
[1763632528665,0.68,142.05,142.03,1.7]
[1763632529244,0.68,142.05,142.04,1.7]
[1763632529869,7.03977472,142.05,142.04,1.7]
[1763632530266,7.03977472,142.05,142.04,12.7553205]
[1763632530570,17.59594426,142.08,142.04,13.2353205]
[1763632530756,18.27594426,142.08,142.04,1.7]
[1763632530962,17.59594426,142.08,142.04,0.48]
[1763632531155,7.03891586,142.07,142.05,1.7]
[1763632531474,7.03779294,142.09,142.05,12.7553205]
[1763632531669,7.71779294,142.09,142.05,12.7553205]
[1763632532668,7.71779294,142.09,142.05,1.7]
[1763632532976,0.68,142.08,142.06,1.7]
[1763632533849,25.31227531,142.09,142.06,1.7]
[1763632534568,7.03779294,142.09,142.06,1.7]
[1763632534871,7.71779294,142.09,142.06,1.7]
[1763632536271,36.36759581,142.09,142.06,1.7]
[1763632536768,25.31227531,142.09,142.06,1.7]
[1763632536971,36.36759581,142.09,142.06,1.7]
[1763632537960,25.31227531,142.09,142.06,1.7]
[1763632538469,24.63227531,142.09,142.06,1.7]
[1763632538772,0.68,142.08,142.07,1.7]
[1763632539274,11.7353205,142.08,142.07,1.7]
[1763632540176,18.77360878,142.08,142.07,1.7]
[1763632542863,11.88695521,142.08,142.07,1.7]
[1763632543185,7.71828828,142.08,142.07,1.7]
[1763632543389,11.88695521,142.08,142.07,1.7]
[1763632544382,7.71828828,142.08,142.07,1.7]
[1763632544575,11.88695521,142.08,142.07,1.7]
[1763632544954,29.48267593,142.08,142.03,0.48]
[1763632545159,29.48267593,142.08,142.04,1.7]
[1763632545574,29.48267593,142.08,142.04,2.18]
[1763632546459,28.80267593,142.08,142.04,2.18]
[1763632546954,29.48267593,142.08,142.04,2.18]
[1763632550168,24.634009,142.08,142.04,1.7]
[1763632550382,7.03828828,142.08,142.05,4.64866693]
[1763632550680,7.03828828,142.08,142.06,0.48]
[1763632551187,7.03828828,142.08,142.05,4.64866693]
[1763632551370,7.03779294,142.09,142.06,0.48]
[1763632552783,29.48094224,142.09,142.04,2.18]
[1763632553084,29.48094224,142.09,142.05,2.18]
[1763632553383,29.48094224,142.09,142.06,1.7]
[1763632554162,4.16866693,142.08,142.01,7.0414648]
[1763632554487,4.16866693,142.07,142.02,2.18]
[1763632554684,4.84866693,142.07,142.02,2.18]
[1763632554985,4.84866693,142.07,142.03,0.48]
[1763632555593,7.03927917,142.06,142.03,0.48]
[1763632557191,7.71888055,142.07,142.03,0.48]
[1763632559999,7.71888055,142.07,142.03,7.52073398]
[1763632560962,0.68,142.06,142.02,12.90988469]
[1763632561168,0.68,142.06,142.02,13.38988469]
[1763632561771,7.03888055,142.07,142.03,0.48]
[1763632561987,7.71888055,142.07,142.03,0.48]
[1763632563570,7.71888055,142.07,142.04,1.7]
[1763632566282,7.71888055,142.07,142.03,0.48]
[1763632566488,7.71888055,142.07,142.04,1.7]
[1763632567105,7.03888055,142.07,142.04,2.18]
[1763632567285,7.03888055,142.07,142.04,6.34866693]
[1763632568483,7.03888055,142.07,142.04,13.38892647]
[1763632568886,7.03779294,142.09,142.06,4.16866693]
[1763632569082,7.03779294,142.09,142.07,1.68]
[1763632569700,7.71751737,142.1,142.07,1.68]
[1763632569881,25.31076156,142.1,142.05,0.48]
[1763632570074,4.16866693,142.08,142.06,1.68]
[1763632570506,11.88778062,142.07,142.02,26.4933355]
[1763632570694,4.16866693,142.06,142.01,7.8923755]
[1763632570899,4.16866693,142.06,141.98,19.58395778]
[1763632570900,4.16866693,142.04,141.98,19.58395778]
[1763632571101,4.16866693,142.04,141.98,19.10395778]
[1763632571412,4.84866693,142.03,141.99,1.68]
[1763632571580,4.84866693,142.03,142.0,18.12096]
[1763632571785,0.68,142.03,142.0,18.12096]
[1763632572308,7.72095975,142.03,142.0,18.12096]
[1763632573408,0.68,142.02,142.01,1.68]
[1763632574882,4.16866693,142.04,142.01,1.68]
[1763632574883,7.72046011,142.04,142.01,1.68]
[1763632575083,0.68,142.03,142.01,1.68]
[1763632575491,0.68,142.05,142.01,1.68]
[1763632575692,14.63749462,142.06,142.01,12.89035194]
[1763632575902,14.63749462,142.06,142.02,0.48]
[1763632576106,0.68,142.06,142.02,0.48]
[1763632576513,24.63584084,142.07,142.02,4.64866693]
[1763632576809,25.31584084,142.07,142.02,4.64866693]
[1763632577009,0.68,142.06,142.02,4.64866693]
[1763632577483,7.0388816,142.07,142.03,0.48]
[1763632577683,7.7188816,142.07,142.04,1.68]
[1763632578198,0.68,142.06,142.04,1.68]
[1763632579694,7.71935543,142.06,142.04,1.68]
[1763632581015,0.72,142.05,142.04,1.68]
[1763632581517,4.88866693,142.05,142.04,1.68]
[1763632581688,11.92844165,142.05,142.04,1.68]
[1763632581883,39.31670615,142.05,141.98,11.21180587]
[1763632582085,39.31670615,142.05,142.0,18.12096]
[1763632582086,4.16866693,142.03,142.0,18.12096]
[1763632582502,0.72,142.02,142.0,18.12096]
[1763632582704,0.72,142.03,142.0,18.12096]
[1763632583811,7.76124437,142.03,142.0,18.12096]
[1763632583981,7.76124437,142.03,142.01,1.68]
[1763632583982,0.72,142.03,142.01,1.68]
[1763632585214,7.76099505,142.03,142.0,18.12096]
[1763632585420,7.76099505,142.03,142.02,1.68]
[1763632585615,0.72,142.03,142.02,1.68]
[1763632586324,7.76076603,142.03,142.02,1.68]
[1763632586827,0.72,142.03,142.02,1.68]
[1763632587602,10.43034012,142.03,141.98,5.9262825]
[1763632587802,9.71125786,142.02,141.99,1.68]
[1763632588002,10.41125786,142.02,141.99,1.68]
[1763632588222,0.7,142.01,141.99,1.68]
[1763632588907,10.41133215,142.01,141.97,5.9262825]
[1763632589105,10.41133215,142.01,141.98,1.68]
[1763632589330,0.7,142.0,141.98,1.68]
[1763632591009,7.74270846,142.0,141.96,24.0472425]
[1763632591215,7.74270846,142.0,141.97,1.68]
[1763632591408,0.7,141.99,141.97,1.68]
[1763632592825,10.41242221,141.99,141.98,1.68]
[1763632593931,7.74284812,141.99,141.98,1.68]
[1763632595824,0.7,141.99,141.98,1.68]
[1763632597120,7.04248249,142.0,141.98,1.68]
[1763632597312,7.74248249,142.0,141.98,1.68]
[1763632597512,7.74197334,142.01,141.98,1.68]
[1763632597716,7.04141736,142.02,141.98,9.20312591]
[1763632597915,0.7,142.01,141.98,8.72312591]
[1763632598440,0.7,142.01,141.98,11.3927]
[1763632598635,9.71051021,142.03,141.98,11.3927]
[1763632598933,9.71051021,142.03,141.99,3.14957409]
[1763632598934,0.7,142.03,141.99,3.14957409]
[1763632599513,0.7,142.03,142.0,9.71182761]
[1763632599742,0.7,142.03,142.01,1.68]
[1763632600315,7.04046987,142.04,142.01,1.68]
[1763632600538,7.74046987,142.04,142.01,1.68]
[1763632602032,7.04046987,142.04,142.01,1.68]
[1763632602239,0.7,142.03,142.01,1.68]
[1763632602426,7.74046987,142.04,142.01,1.68]
[1763632602938,0.7,142.04,142.01,8.72172478]
[1763632603448,0.7,142.04,141.97,5.9262825]
[1763632603449,2.66957409,142.02,141.97,5.9262825]
[1763632603613,3.36957409,142.01,141.98,1.68]
[1763632603815,3.36957409,142.01,141.99,1.68]
[1763632604110,2.66957409,142.01,141.95,34.24137222]
[1763632604313,2.66957409,142.0,141.96,1.68]
[1763632604538,7.04268725,142.0,141.96,1.68]
[1763632604705,0.7,141.99,141.97,18.12096]
[1763632606434,7.7428311,141.99,141.97,18.12096]
[1763632606622,7.7428311,141.99,141.98,1.68]
[1763632606822,7.7428311,141.99,141.94,24.01874529]
[1763632606823,0.7,141.98,141.94,34.24192833]
[1763632607141,0.7,141.98,141.92,17.6154384]
[1763632607142,2.66957409,141.97,141.95,1.68]
[1763632607312,0.7,141.98,141.96,1.68]
[1763632607638,3.36957409,141.97,141.96,1.68]
[1763632608018,0.7,141.97,141.96,1.68]
[1763632610122,9.78882769,142.01,141.96,1.68]
[1763632610333,3.35957409,142.0,141.96,1.68]
[1763632610540,0.69,142.0,141.96,11.87380668]
[1763632611044,0.69,142.0,141.97,2.66957409]
[1763632611225,0.69,142.0,141.98,1.68]
[1763632611812,7.7322836,142.0,141.98,1.68]
[1763632613427,0.69,142.0,141.98,1.68]
[1763632613625,7.73189198,142.01,141.98,1.68]
[1763632614034,0.69,142.0,141.98,1.68]
[1763632614636,7.73235419,142.0,141.98,1.68]
[1763632615626,0.69,141.99,141.98,1.68]
[1763632617641,7.04235419,142.0,141.98,1.68]
[1763632617825,7.73235419,142.0,141.98,1.68]
[1763632619033,7.73235419,142.0,141.96,7.04395609]
[1763632619242,7.73235419,142.0,141.97,1.68]
[1763632620523,0.69,142.0,141.97,8.72357937]
[1763632621022,7.73225393,142.0,141.97,8.72357937]
[1763632621243,0.69,142.0,141.97,8.72357937]
[1763632623253,0.69,142.03,141.99,2.66957409]
[1763632623438,0.69,142.02,142.0,1.68]
[1763632626031,7.04112026,142.03,142.0,11.39177422]
[1763632626225,7.73112026,142.03,142.0,11.39177422]
[1763632627249,0.69,142.06,142.01,3.14957409]
[1763632627456,0.69,142.05,142.02,2.66957409]
[1763632627628,0.69,142.05,142.03,1.68]
[1763632628350,7.72978053,142.05,142.03,1.68]
[1763632628849,0.69,142.04,142.03,1.68]
[1763632635335,7.03992624,142.05,142.03,1.68]
[1763632635541,0.69,142.07,142.04,2.66957409]
[1763632635841,0.69,142.07,142.03,1.68]
[1763632635842,0.69,142.06,142.03,1.68]
[1763632636243,2.73077819,142.08,142.03,11.87029476]
[1763632636436,0.69,142.07,142.04,1.68]
[1763632637231,7.7288615,142.07,142.04,1.68]
[1763632637562,0.69,142.06,142.04,1.68]
[1763632638137,2.66957409,142.05,142.01,5.91589519]
[1763632638343,2.66957409,142.04,142.02,1.68]
[1763632638954,3.35957409,142.04,142.02,1.68]
[1763632639261,3.35957409,142.03,141.99,5.91589519]
[1763632639564,2.66957409,142.02,142.0,1.68]
[1763632640152,3.33957409,142.02,142.0,1.68]
[1763632640344,0.67,142.02,142.0,1.68]
[1763632640665,3.33957409,142.02,142.0,1.68]
[1763632641465,3.33957409,142.01,141.95,6.39589519]
[1763632641690,2.66957409,141.99,141.96,1.68]
[1763632641964,3.33957409,142.0,141.96,1.68]
[1763632642158,2.66957409,141.99,141.96,2.16]
[1763632643058,2.66957409,141.99,141.96,9.20421181]
[1763632644468,10.38206061,142.0,141.96,9.20421181]
[1763632645763,0.67,142.0,141.96,9.20421181]
[1763632645968,2.66957409,142.02,141.97,3.14957409]
[1763632646266,3.33957409,142.02,141.97,3.14957409]
[1763632646454,3.33957409,142.02,141.98,0.48]
[1763632646648,0.67,142.03,141.99,1.68]
[1763632647066,3.33957409,142.03,141.99,1.68]
[1763632647269,2.66957409,142.02,141.99,1.68]
[1763632647466,9.71133171,142.01,141.97,18.12096]
[1763632647670,2.66957409,142.0,141.98,1.68]
[1763632647967,3.37957409,142.0,141.98,1.68]
[1763632648168,0.71,141.99,141.96,7.04402074]
[1763632648364,0.71,141.99,141.97,1.68]
[1763632648675,0.71,142.0,141.96,7.52402074]
[1763632648858,0.71,142.0,141.98,1.68]
[1763632649057,0.71,141.99,141.98,1.68]
[1763632650467,7.75274948,141.99,141.98,1.68]
[1763632650662,0.71,141.99,141.98,1.68]
[1763632651651,7.75274948,141.99,141.98,1.68]
[1763632653074,7.04241579,142.0,141.98,1.68]
[1763632653258,7.75241579,142.0,141.98,1.68]
[1763632653861,11.92540943,142.0,141.98,1.68]
[1763632654665,11.21540943,142.0,141.98,1.68]
[1763632654870,0.71,141.99,141.98,1.68]
[1763632657176,7.75274948,141.99,141.98,1.68]
[1763632658159,7.04274948,141.99,141.98,1.68]
[1763632658360,7.75274948,141.99,141.98,1.68]
[1763632659784,11.92574312,141.99,141.98,1.68]
[1763632660486,7.75274948,141.99,141.98,1.68]
[1763632662761,7.75274948,141.99,141.95,7.5245635]
[1763632662960,7.75274948,141.99,141.96,1.68]
[1763632662961,0.71,141.98,141.96,1.68]
[1763632664088,11.92537853,142.0,141.96,1.68]
[1763632664289,0.71,141.99,141.96,1.68]
[1763632664670,4.17299364,141.97,141.93,24.03685519]
[1763632664877,4.17299364,141.98,141.94,1.68]
[1763632665184,4.88299364,141.98,141.95,1.68]
[1763632665380,0.71,141.97,141.95,1.68]
[1763632665561,4.88299364,141.97,141.95,1.68]
[1763632666099,11.92723145,141.96,141.91,6.01589519]
[1763632666304,4.17299364,141.95,141.92,1.68]
[1763632666583,0.71,141.95,141.92,1.68]
[1763632666785,0.71,141.94,141.92,1.68]
[1763632668785,0.71,141.94,141.91,0.1]
[1763632668963,7.7553365,141.94,141.91,0.1]
[1763632669170,7.7553365,141.94,141.92,1.68]
[1763632670936,0.71,141.93,141.92,1.68]
[1763632672389,0.71,141.97,141.92,6.33299364]
[1763632672586,0.71,141.99,141.95,4.17299364]
[1763632672780,0.71,141.99,141.96,1.68]
[1763632673587,4.17299364,142.02,141.96,5.85299364]
[1763632673796,4.17299364,142.03,141.97,4.17299364]
[1763632673797,0.71,142.01,141.97,4.17299364]
[1763632673998,0.71,142.01,141.97,4.65299364]
[1763632674578,0.71,142.01,141.97,11.69633528]
[1763632675572,0.71,142.01,141.97,7.52334164]
[1763632675768,0.71,142.01,141.97,11.21633528]
[1763632675968,0.71,142.01,141.97,11.69633528]
[1763632678582,0.71,142.01,141.97,28.82568936]
[1763632678786,0.71,142.01,141.97,29.30568936]
[1763632679997,0.71,142.01,141.98,0.48]
[1763632680202,0.71,142.01,141.99,1.68]
[1763632680901,4.38722514,142.03,141.99,8.72242639]
[1763632681101,0.71,142.02,141.99,8.72242639]
[1763632684216,3.67722514,142.03,142.0,4.65299364]
[1763632684813,4.38722514,142.03,141.99,30.98229375]
[1763632684996,4.38722514,142.03,142.0,0.48]
[1763632685509,4.38722514,142.03,141.99,30.50229375]
[1763632685721,4.38722514,142.03,141.99,30.98229375]
[1763632686497,4.38722514,142.03,141.99,30.50229375]
[1763632686809,4.38722514,142.03,141.99,30.98229375]
[1763632687313,3.67722514,142.03,142.01,4.17299364]
[1763632687615,3.67722514,142.03,142.02,1.68]
[1763632688320,3.67722514,142.03,142.02,6.33299364]
[1763632688613,3.67722514,142.03,142.02,12.24888883]
[1763632688789,3.67722514,142.03,142.02,6.33299364]
[1763632688991,3.67722514,142.03,142.02,13.37425543]
[1763632691801,0.71,142.08,142.02,30.97740991]
[1763632692001,0.71,142.08,142.04,4.17299364]
[1763632692220,0.71,142.08,142.05,1.68]
[1763632692418,4.88299364,142.1,142.05,6.33299364]
[1763632692619,0.71,142.09,142.06,4.17299364]
[1763632692917,0.71,142.09,142.05,5.85299364]
[1763632693419,0.71,142.09,142.06,7.03927917]
[1763632693720,4.17299364,142.08,142.07,1.68]
[1763632694099,4.88299364,142.08,142.07,1.68]
[1763632694310,0.71,142.08,142.07,1.68]
[1763632695927,4.88299364,142.08,142.07,1.68]
[1763632696110,0.71,142.08,142.07,1.68]
[1763632696310,4.88299364,142.08,142.07,1.68]
[1763632697007,0.71,142.08,142.07,1.68]
[1763632697203,4.88299364,142.08,142.07,1.68]
[1763632698019,11.92128192,142.08,142.07,1.68]
[1763632699195,0.71,142.08,142.07,1.68]
[1763632699512,4.88299364,142.08,142.07,1.68]
[1763632699821,0.71,142.08,142.07,1.68]
[1763632701127,4.88299364,142.08,142.07,1.68]
[1763632701701,11.92128192,142.08,142.07,1.68]
[1763632702024,0.67,142.08,142.07,1.68]
[1763632702704,0.67,142.08,142.07,8.71878369]
[1763632702917,0.67,142.08,142.07,1.68]
[1763632704834,11.21033699,142.1,142.07,1.68]
[1763632705028,0.67,142.09,142.07,1.68]
[1763632705324,0.67,142.1,142.07,8.71864996]
[1763632705627,0.67,142.09,142.07,8.71864996]
[1763632707825,0.67,142.09,142.07,1.68]
[1763632709519,11.88079588,142.09,142.07,1.68]
[1763632710024,0.66,142.08,142.07,1.68]
[1763632711735,10.36498192,142.1,142.07,1.68]
[1763632712034,0.66,142.09,142.07,1.68]
[1763632716030,10.36529951,142.09,142.07,1.68]
[1763632716332,3.32745277,142.09,142.07,1.68]
[1763632716533,0.66,142.08,142.07,1.68]
[1763632721732,0.66,142.09,142.07,1.68]
[1763632723039,0.66,142.09,142.07,8.71846338]
[1763632723531,28.48768835,142.11,142.07,9.19846338]
[1763632723846,0.66,142.1,142.07,9.19846338]
[1763632724016,7.69731386,142.1,142.07,8.71846338]
[1763632724716,0.66,142.09,142.07,8.71846338]
[1763632727823,10.36530199,142.09,142.08,1.68]
[1763632728628,7.69784922,142.09,142.04,2.66745277]
[1763632728828,0.66,142.08,142.05,8.71969568]
[1763632729510,7.69829696,142.08,142.05,8.71969568]
[1763632729713,7.69829696,142.08,142.06,1.68]
[1763632729935,0.66,142.07,142.06,1.68]
[1763632730939,7.69829696,142.08,142.06,1.68]
[1763632731136,7.03829696,142.08,142.06,1.68]
[1763632731327,0.66,142.07,142.06,1.68]
[1763632733132,0.66,142.07,142.04,12.95590624]
[1763632733437,0.66,142.07,142.06,1.68]
[1763632742049,0.66,142.08,142.06,1.68]
[1763632743663,7.69832424,142.08,142.06,1.68]
[1763632745331,0.66,142.08,142.06,1.68]
[1763632746454,10.36582418,142.08,142.04,12.95600874]
[1763632746657,2.66745277,142.06,142.03,5.91589519]
[1763632746962,2.66745277,142.06,142.04,1.68]
[1763632747150,2.66745277,142.07,142.05,1.68]
[1763632747341,9.70668811,142.07,142.05,1.68]
[1763632747655,29.97774194,142.07,142.05,1.68]
[1763632747856,0.66,142.06,142.05,1.68]
[1763632750044,7.69941565,142.06,142.05,1.68]
[1763632750844,7.69941565,142.06,142.02,12.95686364]
[1763632751153,3.32745277,142.05,142.03,1.68]
[1763632751358,0.66,142.05,142.03,1.68]
[1763632751656,0.66,142.04,142.03,1.68]
[1763632756561,0.66,142.04,142.02,7.0412031]
[1763632756861,0.66,142.04,142.03,1.68]
[1763632759459,0.66,142.05,142.03,1.68]
[1763632761375,18.12096,142.04,142.03,1.68]
[1763632762344,18.83096,142.04,142.03,1.68]
[1763632762942,18.12096,142.04,142.03,1.68]
[1763632763342,18.12096,142.04,142.01,13.45761184]
[1763632763542,18.12096,142.04,142.02,1.68]
[1763632764277,7.74987715,142.05,142.02,1.68]
[1763632764869,7.03987715,142.05,142.02,1.68]
[1763632765046,0.71,142.04,142.02,1.68]
[1763632765446,7.74987715,142.05,142.02,8.7211542]
[1763632765750,7.03987715,142.05,142.02,8.7211542]
[1763632765947,7.03987715,142.05,142.02,11.38860697]
[1763632766151,7.74987715,142.05,142.02,11.38860697]
[1763632766555,7.74987715,142.05,142.02,8.7211542]